fUSD/lending_fUSD_20260513
["ID","MTS","AMOUNT","RATE_DAILY","PERIOD"]
[422191982,1778674240000,-150.0,0.00014722,2]
[422191971,1778674240000,-150.0,0.00014653,2]
[422191983,1778674240000,-150.0,0.00014737,2]
[422192005,1778674240000,-330.50441725,0.0001487,2]
[422192006,1778674240000,-186.80573571,0.0001487,2]
[422192007,1778674240000,-200.0,0.0001488,2]
[422192008,1778674240000,-862.84890319,0.00014898,2]
[422192009,1778674240000,-74.98161176,0.00014898,2]
[422192012,1778674240000,-431.17448,0.00014898,2]
[422192011,1778674240000,-282.37792921,0.00014898,2]
[422192013,1778674240000,-740.562662,0.00011678,2]
[422192003,1778674240000,-150.0,0.00014861,2]
[422192015,1778674240000,-765.49574529,0.00014899,2]
[422192016,1778674240000,-97.35315785,0.00014899,2]
[422192019,1778674240000,-614.42543296,0.00014899,2]
[422192017,1778674240000,-862.84890314,0.00014899,2]
[422192018,1778674240000,-248.42347018,0.00014899,2]
[422192020,1778674240000,-536.73434526,0.000149,2]
[422192021,1778674240000,-326.11455788,0.000149,2]
[422192022,1778674240000,-157.54489278,0.000149,2]
[422191980,1778674240000,-2335.8641034,0.0001471,2]
[422192014,1778674240000,-149.29649393,0.00014898,2]
[422192001,1778674240000,-178.752,0.00014853,2]
[422192010,1778674240000,-75.01838824,0.00014898,2]
[422192000,1778674240000,-2762.693,0.00014853,2]
[422191984,1778674240000,-2000.0,0.0001475,2]
[422192004,1778674240000,-150.0,0.00014869,2]
[422191985,1778674240000,-150.0,0.00014751,2]
[422191987,1778674240000,-150.0,0.00014772,2]
[422191988,1778674240000,-4906.11146519,0.00014776,2]
[422191991,1778674240000,-200.0,0.000148,5]
[422191990,1778674240000,-860.5966,0.000148,2]
[422191993,1778674240000,-150.0,0.0001482,2]
[422192023,1778674240000,-750.0,0.000149,2]
[422191986,1778674240000,-4475.0066776,0.00014752,2]
[422191992,1778674240000,-150.0,0.0001481,2]
[422191994,1778674240000,-150.0,0.00014836,2]
[422191999,1778674240000,-150.0,0.0001485,2]
[422191995,1778674240000,-150.0,0.00014839,2]
[422191996,1778674240000,-370.16,0.00014848,2]
[422191998,1778674240000,-650.83634,0.0001485,2]
[422191997,1778674240000,-650.83633,0.0001485,2]
[422192002,1778674240000,-650.83634,0.0001486,2]
[422191989,1778674240000,-150.0,0.00014781,2]
[422192028,1778674243000,-260.0,0.0001015,2]
[422192029,1778674243000,-1413.0,0.000149,2]
[422192032,1778674246000,-1241.28318272,0.000149,2]
[422192035,1778674246000,-200.0,0.000149,5]
[422192033,1778674246000,-1157.0,0.000149,5]
[422192034,1778674246000,-5000.0,0.000149,2]
[422192039,1778674246000,-475.37408862,0.000149,2]
[422192037,1778674246000,-1707.67612849,0.000149,2]
[422192038,1778674246000,-171.70359265,0.000149,2]
[422192040,1778674246000,-387.47481452,0.000149,2]
[422192041,1778674246000,-56.91296886,0.000149,2]
[422192036,1778674246000,-4475.0066776,0.000149,2]
[422192044,1778674269000,157.71,7.204e-05,2]
[422192045,1778674270000,157.71,9.512e-05,2]
[422192061,1778675037000,262.66274919,0.0002705,120]
[422192062,1778675152000,-189.92437612,0.00011818,2]
[422192064,1778675152000,-157.71,0.00011819,2]
[422192063,1778675152000,-250.0,0.00011818,2]
[422192065,1778675152000,-352.04479577,0.00012537,2]
[422192066,1778675152000,-4059.02,0.00012781,2]
[422192074,1778675153000,-187.77481468,0.00013,2]
[422192075,1778675153000,-200.0,0.00013047,2]
[422192068,1778675153000,-300.0,0.00012999,2]
[422192069,1778675153000,-1200.0,0.00012999,2]
[422192067,1778675153000,-150.0,0.00012808,2]
[422192071,1778675153000,-339.74349002,0.00013,2]
[422192072,1778675153000,-1493.18231591,0.00013,2]
[422192073,1778675153000,-561.4437544,0.00013,2]
[422192070,1778675153000,-250.0,0.00013,2]
[422192076,1778675154000,150.0,0.00012678,2]
[422192077,1778675176000,216.482437,0.0001304,2]
[422192079,1778675210000,-216.292774,0.00013106,2]
[422192080,1778675232000,500.0,0.00012868,2]
[422192082,1778675248000,-180.41694896,0.00013327,2]
[422192081,1778675248000,-40.737226,0.00013106,2]
[422192083,1778675289000,500.0,0.0001289,2]
[422192084,1778675359000,1641.27,0.0001289,2]
[422192085,1778675419000,185.08,0.00012934,2]
[422192124,1778675432000,-2500.0,0.0001379,2]
[422192111,1778675432000,-178.75322326,0.00013699,2]
[422192114,1778675432000,-2210.155,0.00013699,2]
[422192113,1778675432000,-200.0,0.00013699,2]
[422192112,1778675432000,-166.66,0.00013699,2]
[422192110,1778675432000,-329.35,0.00013608,2]
[422192115,1778675432000,-2501.32,0.00013699,2]
[422192127,1778675432000,-156.92,0.00013863,2]
[422192116,1778675432000,-9999.99,0.00013699,2]
[422192118,1778675432000,-150.99,0.00013699,2]
[422192120,1778675432000,-150.0,0.00013754,2]
[422192121,1778675432000,-257.03,0.00013761,2]
[422192119,1778675432000,-150.0,0.00013702,2]
[422192123,1778675432000,-4211.94591993,0.0001379,2]
[422192122,1778675432000,-871.63719046,0.0001379,2]
[422192117,1778675432000,-4541.43,0.00013699,2]
[422192109,1778675432000,-769.20792414,0.00013608,2]
[422192102,1778675432000,-150.0,0.00013488,2]
[422192105,1778675432000,-150.0,0.00013488,2]
[422192091,1778675432000,-347.0,0.00013327,2]
[422192092,1778675432000,-1472.58305104,0.00013327,2]
[422192093,1778675432000,-257.03,0.00013433,2]
[422192094,1778675432000,-300.0,0.00013487,2]
[422192096,1778675432000,-185.30906992,0.00013488,2]
[422192097,1778675432000,-150.0,0.00013488,2]
[422192095,1778675432000,-1200.0,0.00013487,2]
[422192108,1778675432000,-2650.48207586,0.00013608,2]
[422192098,1778675432000,-150.0,0.00013488,2]
[422192125,1778675432000,-150.0,0.00013809,2]
[422192100,1778675432000,-150.0,0.00013488,2]
[422192099,1778675432000,-150.0,0.00013488,2]
[422192103,1778675432000,-202.64844241,0.00013488,2]
[422192104,1778675432000,-150.0,0.00013488,2]
[422192106,1778675432000,-150.0,0.00013595,2]
[422192107,1778675432000,-408.0067,0.00013598,2]
[422192101,1778675432000,-150.64066077,0.00013488,2]
[422192126,1778675432000,-166.66,0.00013836,2]
[422192154,1778675432000,-500.44627441,0.00013889,2]
[422192129,1778675432000,-500.0,0.00013889,2]
[422192150,1778675432000,-500.0,0.00013889,2]
[422192153,1778675432000,-500.0,0.00013889,2]
[422192151,1778675432000,-500.0,0.00013889,2]
[422192152,1778675432000,-500.0,0.00013889,2]
[422192156,1778675432000,-329.76530274,0.00013889,2]
[422192157,1778675432000,-500.0,0.00013889,2]
[422192155,1778675432000,-170.23469726,0.00013889,2]
[422192149,1778675432000,-500.0,0.00013889,2]
[422192158,1778675432000,-500.0,0.00013889,2]
[422192161,1778675432000,-500.0,0.00013889,2]
[422192128,1778675432000,-500.0,0.00013889,2]
[422192159,1778675432000,-500.0,0.00013889,2]
[422192163,1778675432000,-500.0,0.00013889,2]
[422192164,1778675432000,-500.0,0.00013889,2]
[422192166,1778675432000,-500.0,0.00013889,2]
[422192165,1778675432000,-500.0,0.00013889,2]
[422192160,1778675432000,-500.0,0.00013889,2]
[422192148,1778675432000,-500.0,0.00013889,2]
[422192162,1778675432000,-500.0,0.00013889,2]
[422192144,1778675432000,-500.0,0.00013889,2]
[422192147,1778675432000,-500.0,0.00013889,2]
[422192132,1778675432000,-500.0,0.00013889,2]
[422192131,1778675432000,-500.0,0.00013889,2]
[422192133,1778675432000,-500.0,0.00013889,2]
[422192130,1778675432000,-500.0,0.00013889,2]
[422192135,1778675432000,-500.0,0.00013889,2]
[422192137,1778675432000,-500.0,0.00013889,2]
[422192136,1778675432000,-500.0,0.00013889,2]
[422192134,1778675432000,-500.0,0.00013889,2]
[422192140,1778675432000,-500.0,0.00013889,2]
[422192141,1778675432000,-500.0,0.00013889,2]
[422192138,1778675432000,-500.0,0.00013889,2]
[422192142,1778675432000,-500.0,0.00013889,2]
[422192145,1778675432000,-500.0,0.00013889,2]
[422192146,1778675432000,-500.0,0.00013889,2]
[422192139,1778675432000,-500.0,0.00013889,2]
[422192143,1778675432000,-500.0,0.00013889,2]
[422192174,1778675433000,-500.0,0.00013889,2]
[422192172,1778675433000,-500.0,0.00013889,2]
[422192173,1778675433000,-500.0,0.00013889,2]
[422192170,1778675433000,-500.0,0.00013889,2]
[422192168,1778675433000,-500.0,0.00013889,2]
[422192169,1778675433000,-400.0,0.00013889,2]
[422192167,1778675433000,-500.0,0.00013889,2]
[422192175,1778675433000,-500.0,0.00013889,2]
[422192171,1778675433000,-500.0,0.00013889,2]
[422192177,1778675433000,-500.0,0.00013889,2]
[422192182,1778675433000,-500.0,0.00013889,2]
[422192178,1778675433000,-500.0,0.00013889,2]
[422192179,1778675433000,-500.0,0.00013889,2]
[422192180,1778675433000,-500.0,0.00013889,2]
[422192183,1778675433000,-468927.01863629,0.0001389,2]
[422192181,1778675433000,-500.0,0.00013889,2]
[422192184,1778675433000,-48918.3765268,0.0001389,2]
[422192186,1778675433000,-131351.01035838,0.0001389,2]
[422192187,1778675433000,-1254.41808677,0.0001389,2]
[422192185,1778675433000,-14723.08483691,0.0001389,2]
[422192176,1778675433000,-500.0,0.00013889,2]
[422192192,1778675438000,-3825.64510238,0.0001389,2]
[422192193,1778675438000,-276.62169554,0.0001389,2]
[422192194,1778675438000,-1106.53557131,0.0001389,2]
[422192196,1778675438000,-1671.90426114,0.0001389,2]
[422192198,1778675438000,-2684.92984661,0.0001389,2]
[422192199,1778675438000,-1059.96971443,0.0001389,2]
[422192200,1778675438000,-40646.04799792,0.0001389,2]
[422192195,1778675438000,-477.71936139,0.0001389,2]
[422192197,1778675438000,-1664.72881576,0.0001389,2]
[422192201,1778675438000,-389.73312,0.0001389,2]
[422192814,1778675443000,-8925.6572687,0.0001389,2]
[422192812,1778675443000,-5085.77571203,0.0001389,2]
[422192850,1778675443000,-3287.0,0.0001389,2]
[422192982,1778675446000,-4021.44957112,0.0001389,2]
[422192981,1778675446000,-7580.86741513,0.0001389,2]
[422192980,1778675446000,-279.458431,0.0001389,2]
[422192978,1778675446000,-845.0235,0.0001389,2]
[422192977,1778675446000,-1401.99705,0.0001389,2]
[422192976,1778675446000,-2430.59892602,0.0001389,2]
[422192974,1778675446000,-605.53870129,0.0001389,2]
[422192975,1778675446000,-741.786831,0.0001389,2]
[422192979,1778675446000,-1778.649395,0.0001389,2]
[422192985,1778675608000,299.2781725,0.00027286,120]
[422192986,1778675620000,255.13,0.00012978,2]
[422192987,1778675627000,152.0,9.209e-05,2]
[422192988,1778675824000,150.0,0.00012837,2]
[422192989,1778675827000,2221.29,0.00012837,2]
[422192993,1778675854000,155.9,7.714e-05,2]
[422192992,1778675854000,155.9,7.322e-05,2]
[422192991,1778675854000,155.9,6.929e-05,2]
[422192990,1778675854000,155.9,6.537e-05,2]
[422192998,1778675855000,155.9,9.677e-05,2]
[422192997,1778675855000,155.9,9.284e-05,2]
[422192996,1778675855000,155.9,8.892e-05,2]
[422192995,1778675855000,155.9,8.499e-05,2]
[422192994,1778675855000,155.9,8.107e-05,2]
[422192999,1778675856000,155.9,0.00010069,2]
[422193002,1778675856000,155.9,0.00010854,2]
[422193001,1778675856000,155.9,0.00010462,2]
[422193007,1778675857000,155.9,0.00012817,2]
[422193006,1778675857000,155.9,0.00012424,2]
[422193005,1778675857000,155.9,0.00012032,2]
[422193004,1778675857000,155.9,0.00011639,2]
[422193003,1778675857000,155.9,0.00011247,2]
[422193009,1778675879000,3460.6040161,0.00012817,2]
[422193023,1778676291000,183.86392443,0.00027071,120]
[422193025,1778676521000,200.51,0.00012324,7]
[422193061,1778676634000,-214.91342137,0.00012589,2]
[422193062,1778676634000,-261.17,0.00012606,2]
[422193063,1778676634000,-25517.20153242,0.00012625,2]
[422193065,1778676634000,-154.29,0.00012661,2]
[422193064,1778676634000,-150.0,0.00012638,2]
[422193066,1778676634000,-1817.78,0.00012696,2]
[422193069,1778676634000,-20487.16,0.00012743,2]
[422193059,1778676634000,-1028.89,0.00012524,2]
[422193043,1778676634000,-200.0,0.0001223,2]
[422193071,1778676634000,-997.96516734,0.00013157,2]
[422193073,1778676634000,-2221.29,0.00013158,2]
[422193077,1778676634000,-1285.46325326,0.00013313,2]
[422193086,1778676634000,-212.97279392,0.00013447,2]
[422193075,1778676634000,-1441.91,0.00013165,2]
[422193079,1778676634000,-255.0,0.00013413,2]
[422193080,1778676634000,-9628.94722937,0.00013413,2]
[422193088,1778676634000,-851.03928449,0.00013447,2]
[422193067,1778676634000,-168.76,0.00012699,2]
[422193070,1778676634000,-244.1759839,0.00012817,2]
[422193057,1778676634000,-2786.90793776,0.0001249,2]
[422193046,1778676634000,-250.0,0.00012288,2]
[422193047,1778676634000,-27157.86,0.00012289,2]
[422193042,1778676634000,-150.73392658,0.00012188,2]
[422193045,1778676634000,-1200.0,0.00012288,2]
[422193044,1778676634000,-300.0,0.00012288,2]
[422193048,1778676634000,-200.0,0.00012324,2]
[422193049,1778676634000,-150.0,0.00012329,2]
[422193051,1778676634000,-2000.0,0.0001233,2]
[422193055,1778676634000,-29999.99,0.0001249,2]
[422193052,1778676634000,-255.681201,0.00012332,2]
[422193053,1778676634000,-4718.51036835,0.00012424,2]
[422193050,1778676634000,-31965.6,0.0001233,2]
[422193054,1778676634000,-259.9,0.0001249,2]
[422193056,1778676634000,-2302.78206224,0.0001249,2]
[422193058,1778676634000,-4540.02,0.00012513,2]
[422193060,1778676634000,-500.0,0.00012546,2]
[422193098,1778676634000,-150.0,0.00013488,2]
[422193068,1778676634000,-208.27114069,0.00012736,2]
[422193099,1778676634000,-150.0,0.00013488,2]
[422193121,1778676634000,-500.0,0.00013654,2]
[422193123,1778676634000,-500.0,0.00013654,2]
[422193119,1778676634000,-500.0,0.00013654,2]
[422193118,1778676634000,-500.0,0.00013654,2]
[422193117,1778676634000,-500.0,0.00013654,2]
[422193124,1778676634000,-500.0,0.00013654,2]
[422193122,1778676634000,-500.0,0.00013654,2]
[422193115,1778676634000,-500.0,0.00013654,2]
[422193120,1778676634000,-500.0,0.00013654,2]
[422193127,1778676634000,-500.0,0.00013654,2]
[422193125,1778676634000,-500.0,0.00013654,2]
[422193129,1778676634000,-500.0,0.00013654,2]
[422193128,1778676634000,-500.0,0.00013654,2]
[422193132,1778676634000,-500.0,0.00013654,2]
[422193130,1778676634000,-500.0,0.00013654,2]
[422193100,1778676634000,-250.0,0.00013517,2]
[422193126,1778676634000,-500.0,0.00013654,2]
[422193116,1778676634000,-500.0,0.00013654,2]
[422193131,1778676634000,-500.0,0.00013654,2]
[422193112,1778676634000,-500.0,0.00013654,2]
[422193101,1778676634000,-1680.0,0.00013517,2]
[422193113,1778676634000,-500.0,0.00013654,2]
[422193090,1778676634000,-2221.29,0.00013479,2]
[422193097,1778676634000,-150.0,0.00013488,2]
[422193096,1778676634000,-150.0,0.00013488,2]
[422193094,1778676634000,-150.0,0.00013488,2]
[422193095,1778676634000,-150.0,0.00013488,2]
[422193103,1778676634000,-2500.0,0.00013554,2]
[422193092,1778676634000,-1512.3373154,0.00013488,2]
[422193107,1778676634000,-2138.29083575,0.00013598,2]
[422193106,1778676634000,-150.0,0.00013595,2]
[422193108,1778676634000,-6865.6,0.00013608,2]
[422193114,1778676634000,-500.0,0.00013654,2]
[422193110,1778676634000,-160.42,0.00013637,2]
[422193111,1778676634000,-151.0,0.00013652,2]
[422193105,1778676634000,-1000.0,0.00013591,2]
[422193109,1778676634000,-1622.36,0.00013608,2]
[422193172,1778676635000,-500.0,0.00013654,2]
[422193184,1778676635000,-500.0,0.00013654,2]
[422193183,1778676635000,-500.0,0.00013654,2]
[422193173,1778676635000,-500.0,0.00013654,2]
[422193170,1778676635000,-500.0,0.00013654,2]
[422193163,1778676635000,-500.0,0.00013654,2]
[422193165,1778676635000,-500.0,0.00013654,2]
[422193169,1778676635000,-500.0,0.00013654,2]
[422193167,1778676635000,-500.0,0.00013654,2]
[422193174,1778676635000,-500.0,0.00013654,2]
[422193168,1778676635000,-500.0,0.00013654,2]
[422193166,1778676635000,-500.0,0.00013654,2]
[422193175,1778676635000,-500.0,0.00013654,2]
[422193185,1778676635000,-500.0,0.00013654,2]
[422193178,1778676635000,-500.0,0.00013654,2]
[422193181,1778676635000,-500.0,0.00013654,2]
[422193176,1778676635000,-500.0,0.00013654,2]
[422193180,1778676635000,-500.0,0.00013654,2]
[422193182,1778676635000,-500.0,0.00013654,2]
[422193177,1778676635000,-500.0,0.00013654,2]
[422193197,1778676635000,-500.0,0.00013654,2]
[422193191,1778676635000,-500.0,0.00013654,2]
[422193186,1778676635000,-341.82002099,0.00013654,2]
[422193192,1778676635000,-500.0,0.00013654,2]
[422193190,1778676635000,-500.0,0.00013654,2]
[422193164,1778676635000,-500.0,0.00013654,2]
[422193179,1778676635000,-500.0,0.00013654,2]
[422193171,1778676635000,-500.0,0.00013654,2]
[422193142,1778676635000,-500.0,0.00013654,2]
[422193161,1778676635000,-500.0,0.00013654,2]
[422193188,1778676635000,-500.0,0.00013654,2]
[422193134,1778676635000,-500.0,0.00013654,2]
[422193135,1778676635000,-500.0,0.00013654,2]
[422193133,1778676635000,-500.0,0.00013654,2]
[422193136,1778676635000,-500.0,0.00013654,2]
[422193138,1778676635000,-500.0,0.00013654,2]
[422193145,1778676635000,-500.0,0.00013654,2]
[422193144,1778676635000,-500.0,0.00013654,2]
[422193139,1778676635000,-500.0,0.00013654,2]
[422193143,1778676635000,-500.0,0.00013654,2]
[422193141,1778676635000,-500.0,0.00013654,2]
[422193137,1778676635000,-500.0,0.00013654,2]
[422193140,1778676635000,-500.0,0.00013654,2]
[422193148,1778676635000,-500.0,0.00013654,2]
[422193158,1778676635000,-500.0,0.00013654,2]
[422193159,1778676635000,-139.53194572,0.00013654,2]
[422193157,1778676635000,-500.0,0.00013654,2]
[422193155,1778676635000,-500.0,0.00013654,2]
[422193147,1778676635000,-500.0,0.00013654,2]
[422193149,1778676635000,-500.0,0.00013654,2]
[422193153,1778676635000,-500.0,0.00013654,2]
[422193150,1778676635000,-500.0,0.00013654,2]
[422193156,1778676635000,-500.0,0.00013654,2]
[422193152,1778676635000,-500.0,0.00013654,2]
[422193154,1778676635000,-500.0,0.00013654,2]
[422193151,1778676635000,-500.0,0.00013654,2]
[422193160,1778676635000,-360.46805428,0.00013654,2]
[422193162,1778676635000,-500.0,0.00013654,2]
[422193187,1778676635000,-231.68389097,0.00013654,2]
[422193146,1778676635000,-500.0,0.00013654,2]
[422193196,1778676635000,-500.0,0.00013654,2]
[422193226,1778676635000,-705.35,0.00013699,2]
[422193233,1778676635000,-2138.29083571,0.00013743,2]
[422193230,1778676635000,-166.66,0.00013699,2]
[422193228,1778676635000,-9999.99,0.00013699,2]
[422193231,1778676635000,-1000.0,0.00013699,2]
[422193232,1778676635000,-150.0,0.00013702,2]
[422193229,1778676635000,-200.0,0.00013699,2]
[422193235,1778676635000,-5000.0,0.00013788,2]
[422193245,1778676635000,-66555.0970944,0.00013888,2]
[422193234,1778676635000,-336.66176163,0.0001376,2]
[422193236,1778676635000,-9608.0259,0.0001379,2]
[422193238,1778676635000,-150.0,0.00013809,2]
[422193237,1778676635000,-2221.29,0.000138,2]
[422193241,1778676635000,-2000.0,0.00013871,2]
[422193240,1778676635000,-150.0,0.00013862,2]
[422193239,1778676635000,-166.66,0.00013836,2]
[422193242,1778676635000,-2138.29083571,0.00013887,2]
[422193243,1778676635000,-150.0,0.00013887,2]
[422193244,1778676635000,-5180.8056533,0.00013888,2]
[422193248,1778676635000,-500.0,0.00013888,2]
[422193253,1778676635000,-511.26367736,0.00013889,2]
[422193246,1778676635000,-500.0,0.00013888,2]
[422193250,1778676635000,-42460.8993043,0.00013888,2]
[422193252,1778676635000,-4970.5600823,0.00013888,2]
[422193249,1778676635000,-500.0,0.00013888,2]
[422193251,1778676635000,-500.0,0.00013888,2]
[422193193,1778676635000,-500.0,0.00013654,2]
[422193227,1778676635000,-2903.42,0.00013699,2]
[422193224,1778676635000,-150.99,0.00013699,2]
[422193247,1778676635000,-30772.8904261,0.00013888,2]
[422193220,1778676635000,-500.0,0.00013698,2]
[422193225,1778676635000,-9999.99,0.00013699,2]
[422193195,1778676635000,-500.0,0.00013654,2]
[422193198,1778676635000,-349.99999999,0.00013654,2]
[422193194,1778676635000,-500.0,0.00013654,2]
[422193189,1778676635000,-500.0,0.00013654,2]
[422193210,1778676635000,-500.0,0.00013698,2]
[422193199,1778676635000,-500.0,0.00013654,2]
[422193201,1778676635000,-500.0,0.00013654,2]
[422193204,1778676635000,-400062.80104943,0.00013655,2]
[422193205,1778676635000,-500.0,0.00013698,2]
[422193203,1778676635000,-8110.28912515,0.00013655,2]
[422193206,1778676635000,-500.0,0.00013698,2]
[422193202,1778676635000,-29448.15382542,0.00013655,2]
[422193207,1778676635000,-500.0,0.00013698,2]
[422193200,1778676635000,-500.0,0.00013654,2]
[422193208,1778676635000,-505.50097699,0.00013698,2]
[422193219,1778676635000,-500.0,0.00013698,2]
[422193209,1778676635000,-162.05932772,0.00013698,2]
[422193223,1778676635000,-813.42,0.00013699,2]
[422193222,1778676635000,-542.56640835,0.00013698,2]
[422193213,1778676635000,-500.0,0.00013698,2]
[422193214,1778676635000,-500.0,0.00013698,2]
[422193221,1778676635000,-500.0,0.00013698,2]
[422193216,1778676635000,-500.0,0.00013698,2]
[422193217,1778676635000,-500.0,0.00013698,2]
[422193212,1778676635000,-364.81916118,0.00013698,2]
[422193215,1778676635000,-500.0,0.00013698,2]
[422193211,1778676635000,-500.0,0.00013698,2]
[422193218,1778676635000,-500.0,0.00013698,2]
[422193275,1778676636000,-500.0,0.00014,2]
[422193274,1778676636000,-500.0,0.00014,2]
[422193285,1778676636000,-2221.29,0.00014121,2]
[422193282,1778676636000,-3153.5103798,0.00014052,2]
[422193280,1778676636000,-2138.29083571,0.00014032,2]
[422193277,1778676636000,-467.5,0.00014,2]
[422193283,1778676636000,-166.5,0.00014069,2]
[422193284,1778676636000,-166.66,0.0001411,2]
[422193279,1778676636000,-150.0,0.00014023,2]
[422193290,1778676636000,-3892.5291959,0.00014179,2]
[422193287,1778676636000,-5000.5132021,0.00014152,2]
[422193289,1778676636000,-1952.1357343,0.00014179,2]
[422193288,1778676636000,-2138.29083571,0.00014177,2]
[422193297,1778676636000,-1000.0,0.00014295,2]
[422193286,1778676636000,-150.0,0.0001413,2]
[422193294,1778676636000,-150.0,0.00014237,2]
[422193291,1778676636000,-500.0,0.00014202,2]
[422193281,1778676636000,-259.9,0.00014051,2]
[422193292,1778676636000,-150.0,0.00014237,2]
[422193296,1778676636000,-653.65084534,0.00014294,2]
[422193276,1778676636000,-500.0,0.00014,2]
[422193260,1778676636000,-500.0,0.00013889,2]
[422193273,1778676636000,-500.0,0.00014,2]
[422193295,1778676636000,-166.66,0.00014247,2]
[422193258,1778676636000,-500.0,0.00013889,2]
[422193257,1778676636000,-500.0,0.00013889,2]
[422193255,1778676636000,-554.84,0.00013889,2]
[422193254,1778676636000,-500.0,0.00013889,2]
[422193256,1778676636000,-500.0,0.00013889,2]
[422193265,1778676636000,-150.0,0.00013916,2]
[422193259,1778676636000,-509.26577516,0.00013889,2]
[422193269,1778676636000,-500.0,0.00014,2]
[422193261,1778676636000,-500.0,0.00013889,2]
[422193270,1778676636000,-500.0,0.00014,2]
[422193268,1778676636000,-44606.00721993,0.0001399,2]
[422193262,1778676636000,-500.0,0.00013889,2]
[422193266,1778676636000,-500.0,0.00013928,2]
[422193267,1778676636000,-166.66,0.00013973,2]
[422193271,1778676636000,-500.0,0.00014,2]
[422193263,1778676636000,-500.0,0.00013889,2]
[422193264,1778676636000,-500.0,0.00013889,2]
[422193272,1778676636000,-500.0,0.00014,2]
[422193278,1778676636000,-250.0,0.00014,2]
[422193293,1778676636000,-150.0,0.00014237,2]
[422193298,1778676636000,-502.0,0.00014301,2]
[422193302,1778676636000,-150.0,0.00014344,2]
[422193325,1778676636000,-168.76,0.00014795,2]
[422193322,1778676636000,-2357.19,0.00014772,2]
[422193321,1778676636000,-2138.29083571,0.00014755,2]
[422193326,1778676636000,-209.94017322,0.00014832,2]
[422193328,1778676636000,-525.22967,0.0001485,2]
[422193330,1778676636000,-525.22967,0.0001485,2]
[422193339,1778676636000,-500.0,0.00014899,2]
[422193327,1778676636000,-200.0,0.00014847,2]
[422193338,1778676636000,-500.0,0.00014899,2]
[422193331,1778676636000,-500.0,0.00014853,2]
[422193333,1778676636000,-2351.0,0.00014868,2]
[422193334,1778676636000,-398.0,0.00014874,2]
[422193337,1778676636000,-398.0,0.00014898,2]
[422193332,1778676636000,-350.0,0.00014864,2]
[422193335,1778676636000,-150.0,0.00014879,2]
[422193336,1778676636000,-151.0,0.00014897,2]
[422193342,1778676636000,-375.22335977,0.00014899,2]
[422193340,1778676636000,-500.0,0.00014899,2]
[422193341,1778676636000,-500.0,0.00014899,2]
[422193324,1778676636000,-150.0,0.00014772,2]
[422193323,1778676636000,-188.004,0.00014772,2]
[422193329,1778676636000,-525.22967,0.0001485,2]
[422193320,1778676636000,-5000.5132021,0.0001475,2]
[422193300,1778676636000,-2138.29083571,0.00014321,2]
[422193301,1778676636000,-350.0,0.00014333,2]
[422193303,1778676636000,-166.66,0.00014384,2]
[422193319,1778676636000,-609.58332608,0.0001475,2]
[422193305,1778676636000,-5000.5132021,0.00014451,2]
[422193304,1778676636000,-150.0,0.00014451,2]
[422193306,1778676636000,-2138.29083571,0.00014466,2]
[422193307,1778676636000,-500.0,0.00014476,2]